Cogmind - Beta 15 @@@ ROGUE MODE // 2025.08.17 @ 14:47:53 Player: beans Result: Destroyed by Y-45 Defender with Heavy Assault Rifle Performance ------------- Evolutions (2) 1000 Regions Visited (6) 1200 Robots Destroyed (55) 275 Value Destroyed (1035) 1035 Prototype IDs (2) 40 Alien Tech Used (0) 0 Bonus (240) 240 TOTAL SCORE: 3790 Bonus ------- Follower Combat Kills 240 Cogmind --------- Core Integrity 0/550 Matter 275/300 Energy 84/100 System Corruption 3% Temperature Cool (0) Movement Core (100) Ox1 Location -8/Storage Parts ------- > --- POWER (1) -------- (None) > --- PROPULSION (4) --- (None) > --- UTILITY (3) ------ Advanced Visual Processing Unit Drone Bay (2/2) > --- WEAPON (3) ------- (None) > --- INVENTORY (5) ---- (None) Peak State ------------ > --- POWER ------------ Improved Ion Engine > --- PROPULSION ------- (None) > --- UTILITY ---------- Cryofiber Web Targeting Computer Targeting Computer > --- WEAPON ----------- Pulse Rifle Pulse Rifle > --- INVENTORY -------- Improved Ion Engine Advanced Visual Processing Unit Improved Assault Rifle Mining Laser [Rating: 13] Favorites ----------- Power Ion Engine Engine Ion Engine Propulsion Improved Hover Unit Treads Light Treads Hover Unit Improved Hover Unit Utility Targeting Computer Device Cryofiber Web Processor Targeting Computer Weapon Pulse Rifle Energy Gun Pulse Rifle Energy Cannon Advanced Beam Cannon Ballistic Gun Improved Assault Rifle Ballistic Cannon Improved Light Cannon Launcher Grenade Launcher Special Weapon Mining Laser Build | -11 -10 -10 -9 -9 -8 -8 ------- Run | Yrd Mat Min Mat Min Mat Sto Slots Evolved 4 | . . . 2 . 2 . Power . | . . . . . . . Propulsion 2 | . . . 2 . . . Utility 1 | . . . . . 1 . Weapon 1 | . . . . . 1 . Parts Attached 23 | 3 3 1 8 . 6 2 Power 3 | 1 . . . . 2 . Engine 3 | 1 . . . . 2 . Core . | . . . . . . . Reactor . | . . . . . . . Propulsion 4 | 2 2 . . . . . Treads 2 | 2 . . . . . . Leg . | . . . . . . . Wheel . | . . . . . . . Hover 2 | . 2 . . . . . Flight . | . . . . . . . Utility 7 | . . . 2 . 3 2 Device 3 | . . . . . 2 1 Storage . | . . . . . . . Processor 4 | . . . 2 . 1 1 Hackware . | . . . . . . . Protection . | . . . . . . . Artifact . | . . . . . . . Weapon 9 | . 1 1 6 . 1 . Energy Gun 2 | . . . 2 . . . Energy Cannon 1 | . . . . . 1 . Ballistic Gun 2 | . . . 2 . . . Ballistic Cannon 2 | . . . 2 . . . Launcher 1 | . 1 . . . . . Special Weapon 1 | . . 1 . . . . Impact Weapon . | . . . . . . . Slashing Weapon . | . . . . . . . Piercing Weapon . | . . . . . . . Special Melee Weapon . | . . . . . . . Unidentified Prototypes 2 | . . . 1 . 1 . Parts Lost 17 | . . . 3 2 11 1 Power 3 | . . . 1 . 2 . Propulsion 2 | . . . 2 . . . Utility 5 | . . . . . 5 . Weapon 7 | . . . . 2 4 1 Highest Loss Streak 5 | . . . 3 1 5 1 To Critical Strikes . | . . . . . . . Average Backups 2 | . . . 2 3 3 . Power . | . . . . . . . Propulsion . | . . . . . . . Utility . | . . . . 1 1 . Weapon 1 | . . . 2 2 1 . Tool/Special . | . . . . . . . Unused Backups . | . . . . . . . Power . | . . . . . . . Propulsion . | . . . . . . . Utility . | . . . . . . . Weapon . | . . . . . . . Tool/Special . | . . . . . . . Average Slot Usage (%) 39 | . 32 57 39 44 41 12 Engine 3 | . 14 14 1 . 4 . Hover 2 | . 7 28 2 . . . Device 2 | . . . . . 7 3 Processor 14 | . . . 16 22 15 7 Energy Gun 4 | . . . 3 3 11 . Ballistic Gun 5 | . . . 2 18 . . Ballistic Cannon 2 | . . . 9 . . . Launcher 2 | . 11 12 3 . . . Peak Build Rating 13 | 2 6 6 9 9 13 9 Average Rating 7 | . 3 6 5 8 10 4 On Entrance 4 | . 1 6 6 7 9 . Naked Turns 18 | . . . . . 9 9 Heaviest Build 15 | 5 8 8 8 6 15 7 Greatest Support 14 | 3 14 14 14 3 3 3 Greatest Overweight (x) 4 | 1 2 . 2 1 4 2 Average Overweight (x) . | . . . 1 1 1 . Largest Inventory Capacity 5 | 5 5 5 5 5 5 5 Average Capacity 5 | 5 5 5 5 5 5 5 Most Carried 5 | 2 2 1 5 5 5 2 Average Carried 2 | . . . 2 4 3 . Final Capacity 5 | 5 5 5 5 5 5 5 Final Carried 5 | . . 1 5 4 2 . Class Distribution -------------------- 100% | Mutant Dominant Class ---------------- Mutant | -10/Materials Mutant | -10/Mines Mutant | -9/Materials Mutant | -9/Mines Mutant | -8/Materials Mutant | -8/Storage Resources | -11 -10 -10 -9 -9 -8 -8 ----------- Run | Yrd Mat Min Mat Min Mat Sto Matter Collected 928 | 180 26 82 228 338 74 . Remotely . | . . . . . . . Salvage Created 1236 | . 170 . 326 217 523 . Parts 89 | . 10 . 24 23 30 2 Haulers Intercepted 3 | . 1 . 1 . 1 . Recyclers Shooed 1 | . . . . . 1 . Parts Field Recycled . | . . . . . . . Retrieved Matter . | . . . . . . . Parts Self-Destructed . | . . . . . . . Prevented . | . . . . . . . Kills | -11 -10 -10 -9 -9 -8 -8 ------- Run | Yrd Mat Min Mat Min Mat Sto Combat Hostiles Destroyed 38 | . 6 . 10 12 9 1 Guns 16 | . . . . 12 4 . Cannons 6 | . . . 1 . 4 1 AOE 15 | . 6 . 9 . . . Classes Destroyed 11 | . 6 . 4 . 1 . Worker 5 | . 2 . 1 . 2 . Builder 4 | . . . 3 . 1 . Hauler 3 | . 1 . 1 . 1 . Recycler 3 | . 1 . 1 . 1 . Operator 1 | . 1 . . . . . Watcher 1 | . . . 1 . . . Swarmer 21 | . 3 . 5 10 2 1 Grunt 12 | . 3 . 3 2 4 . Brawler 2 | . . . 1 . 1 . Duelist 1 | . . . . . 1 . Sentry 2 | . . . 1 . 1 . Best Kill Streak 5 | . 5 . 5 5 3 1 Combat Bots Only 5 | . 4 . 4 5 3 1 Max Kills in Single Turn 2 | . 2 . 2 2 1 1 Gunslinging 1 | . . . . 1 . . Exploded 2 | . 1 . 2 . . . Melee . | . . . . . . . Uniques/NPCs Destroyed . | . . . . . . . Combat | -11 -10 -10 -9 -9 -8 -8 -------- Run | Yrd Mat Min Mat Min Mat Sto Hostile Shots Fired 237 | . 25 . 11 75 82 44 Missed 76 | . 12 . 2 26 24 12 Hits 161 | . 13 . 9 49 58 32 Melee 2 | . . . . . 2 . Projectile 159 | . 13 . 9 49 56 32 Critical Strikes 6 | . . . . 1 5 . Damage Taken 2051 | . 149 . 137 515 940 310 Core 875 | . 64 . 34 218 389 170 Absorbed by Shields . | . . . . . . . Core Remaining (%) 70 | 100 . 74 . 37 . . Volleys Fired 112 | . 19 2 21 19 48 3 Largest 2 | . 1 1 2 2 2 1 Hottest 126 | . 30 100 126 126 126 100 Shots Fired 160 | . 19 2 29 37 70 3 Gun 92 | . . . 8 36 48 . Cannon 30 | . . . 8 . 22 . Launcher 33 | . 19 . 13 1 . . Special 5 | . . 2 . . . 3 Kinetic 45 | . . . 8 34 3 . Thermal 82 | . . 2 8 2 67 3 Explosive 33 | . 19 . 13 1 . . Electromagnetic . | . . . . . . . Robot Hit Streak 19 | . 2 . 9 19 18 7 Robot Miss Streak 3 | . . 1 3 1 1 1 Penetration Max . | . . . . . . . Secondary Targets 5 | . . . . 4 1 . Max Gunslinging Chain 1 | . . . . 1 1 . Shots Hit Robots 101 | . 2 . 14 28 56 1 Core Hits 88 | . 23 . 26 16 22 1 Critical Kills 1 | . . . . 1 . . Critical Parts Destroyed . | . . . . . . . Critical Strikes 6 | . . . 1 1 4 . Burn 4 | . . . . . 4 . Destroy 1 | . . . . 1 . . Blast 1 | . . . 1 . . . Melee Attacks . | . . . . . . . Impact . | . . . . . . . Slashing . | . . . . . . . Piercing . | . . . . . . . Sneak Attacks . | . . . . . . . Combat Hostiles . | . . . . . . . Follow-up Attacks . | . . . . . . . Damage Inflicted 3545 | . 908 . 1054 466 1093 24 Guns 1162 | . . . 85 424 653 . Cannons 505 | . . . 107 . 398 . Explosions 1812 | . 908 . 862 42 . . Melee . | . . . . . . . Ramming 42 | . . . . . 42 . Kinetic 540 | . . . 107 388 45 . Thermal 1151 | . . . 85 36 1006 24 Explosive 1812 | . 908 . 862 42 . . Electromagnetic . | . . . . . . . Impact . | . . . . . . . Slashing . | . . . . . . . Piercing . | . . . . . . . Highest Corruption 3 | . . . . . 3 3 Average Corruption 1 | . . . . . 1 3 Corruption Purged . | . . . . . . . Corruption Blocked . | . . . . . . . Effects 3 | . . . . . 2 1 Matter Fused 2 | . . . . . 2 . Heat Flow Errors 1 | . . . . . . 1 Overload Shots . | . . . . . . . Overflow Damage 52 | . 17 . 24 11 . . Projectiles 10 | . . . 10 . . . Explosions 42 | . 17 . 14 11 . . Melee . | . . . . . . . Knockbacks . | . . . . . . . Impact . | . . . . . . . Kinetic . | . . . . . . . Secondary . | . . . . . . . Self-Inflicted Damage 64 | . 15 . . 32 17 . Shots 2 | . 1 . . 1 . . Rammed 13 | . . . . . 13 . Targets Rammed 13 | . . . . . 13 . Kicked . | . . . . . . . Crushed . | . . . . . . . Highest Temperature 195 | . 4 58 42 42 195 95 Average Temperature 46 | . 2 30 24 14 62 29 Received Heat Transfer 714 | . 42 . 63 159 441 9 Siege Activations . | . . . . . . . Martial Activations . | . . . . . . . Shielding Activations . | . . . . . . . Robots Disrupted . | . . . . . . . Combat Hostiles . | . . . . . . . Robots Corrupted . | . . . . . . . Combat Hostiles . | . . . . . . . Parts Fried . | . . . . . . . Impact Corruptions . | . . . . . . . Robots Melted . | . . . . . . . Combat Hostiles . | . . . . . . . Parts Melted 2 | . . . . . 2 . Heat Transferred 2566 | . . . 185 74 2257 50 Parts Sabotaged . | . . . . . . . Parts Stolen . | . . . . . . . Parts Stripped . | . . . . . . . Power Chain Reactions . | . . . . . . . Alert | -11 -10 -10 -9 -9 -8 -8 ------- Run | Yrd Mat Min Mat Min Mat Sto Maximum Alert Level 1 | . 1 . 1 1 . . Low Security (%) 86 | 100 86 100 73 74 100 100 Level 1 13 | . 13 . 26 25 . . Level 2 . | . . . . . . . Level 3 . | . . . . . . . Level 4 . | . . . . . . . Level 5 . | . . . . . . . High Security . | . . . . . . . Max Security . | . . . . . . . Peak Influence 367 | . 226 84 367 294 164 39 Initial 139 | . . 84 20 139 103 33 Average 127 | . 108 69 130 178 125 26 Influence Increases 1562 | . 282 . 557 365 321 37 Destroy 0b10 Robot/C 960 | . 120 . 300 300 220 20 Destroy 0b10 Robot/NC 95 | . 25 . 40 5 25 . Destroy Leader 200 | . 32 . 76 40 52 . Allied During Kill 83 | . . . 67 9 7 . Disable Machine 45 | . 30 . 15 . . . Destroy Structure 149 | . 75 . 59 11 2 2 Partial Spotted 15 | . . . . . . 15 Lose Combat Pursuer 15 | . . . . . 15 . Influence Decreases 1542 | . 66 162 254 456 507 97 Entered New Map 594 | . . 132 34 218 163 47 Time Decay 718 | . 66 30 170 198 214 40 Lost Part 170 | . . . 30 20 110 10 Lost Ally 60 | . . . 20 20 20 . Squads Dispatched 5 | . 1 . 1 1 1 1 Investigation . | . . . . . . . Extermination . | . . . . . . . Reinforcement 3 | . 1 . 1 . . 1 Assault 2 | . . . . 1 1 . Garrison . | . . . . . . . Intercept . | . . . . . . . Searches Triggered . | . . . . . . . Construction Impeded . | . . . . . . . Haulers Reinforced . | . . . . . . . Active Scanning Responses . | . . . . . . . Cargo Convoy Interrupts . | . . . . . . . Stealth | -11 -10 -10 -9 -9 -8 -8 --------- Run | Yrd Mat Min Mat Min Mat Sto Distress Signals 9 | . 1 . 1 2 4 1 Communications Jammed . | . . . . . . . Distress Signals . | . . . . . . . Times Spotted 82 | . 11 . 18 19 25 9 Peak Tracking Total 7 | . 5 . 7 5 7 7 Tactical Retreats 2 | . . . . 1 1 . Traps | -11 -10 -10 -9 -9 -8 -8 ------- Run | Yrd Mat Min Mat Min Mat Sto Traps Triggered 1 | . . . . . . 1 Indirectly . | . . . . . . . Trap Hack Attempts . | . . . . . . . Triggered . | . . . . . . . Disarmed . | . . . . . . . Reprogrammed . | . . . . . . . Reused . | . . . . . . . Traps Extracted . | . . . . . . . Installed . | . . . . . . . Triggered . | . . . . . . . Machines | -11 -10 -10 -9 -9 -8 -8 ---------- Run | Yrd Mat Min Mat Min Mat Sto Machines Disabled 3 | . 2 . 1 . . . Max in Single Turn 1 | . 1 . 1 . . . Machines Repaired . | . . . . . . . Machines Dismantled . | . . . . . . . Machines Sabotaged . | . . . . . . . Overloaded Fab Kills . | . . . . . . . Hacking | -11 -10 -10 -9 -9 -8 -8 --------- Run | Yrd Mat Min Mat Min Mat Sto Machines Accessed 1 | . . . . . . 1 Terminals 1 | . . . . . . 1 Fabricators . | . . . . . . . Repair Stations . | . . . . . . . Recycling Units . | . . . . . . . Scanalyzers . | . . . . . . . Garrison Access . | . . . . . . . Total Hacks 1 | . . . . . . 1 Successful 1 | . . . . . . 1 Failed . | . . . . . . . Catastrophic . | . . . . . . . Database Lockouts . | . . . . . . . Manual . | . . . . . . . Terminals 1 | . . . . . . 1 Fabricators . | . . . . . . . Repair Stations . | . . . . . . . Recycling Units . | . . . . . . . Scanalyzers . | . . . . . . . Garrison Access . | . . . . . . . Terminal Hacks 1 | . . . . . . 1 Open Door 1 | . . . . . . 1 Fabricator Hacks . | . . . . . . . Repair Station Hacks . | . . . . . . . Recycling Unit Hacks . | . . . . . . . Scanalyzer . | . . . . . . . Garrison Access Hacks . | . . . . . . . Unauthorized Hacks . | . . . . . . . Terminals . | . . . . . . . Fabricators . | . . . . . . . Repair Stations . | . . . . . . . Recycling Units . | . . . . . . . Scanalyzers . | . . . . . . . Garrison Access . | . . . . . . . Data Cores Recovered . | . . . . . . . Used . | . . . . . . . Hacking Detections . | . . . . . . . Full Trace Events . | . . . . . . . Feedback Events . | . . . . . . . Feedback Blocked . | . . . . . . . Robot Schematics Acquired . | . . . . . . . Robots Built . | . . . . . . . Authchips . | . . . . . . . Time . | . . . . . . . Total Robot Build Rating . | . . . . . . . Part Schematics Acquired . | . . . . . . . Parts Built . | . . . . . . . Authchips . | . . . . . . . Time . | . . . . . . . Total Part Build Rating . | . . . . . . . Parts Repaired . | . . . . . . . Time . | . . . . . . . Parts Recycled . | . . . . . . . Recycled Matter . | . . . . . . . Retrieved Matter . | . . . . . . . Retrieved Components . | . . . . . . . Parts Scanalyzed . | . . . . . . . Part Schematics Acquired . | . . . . . . . Parts Damaged . | . . . . . . . Bothacking | -11 -10 -10 -9 -9 -8 -8 ------------ Run | Yrd Mat Min Mat Min Mat Sto Used RIF Installer . | . . . . . . . Robots Hacked . | . . . . . . . Non-combat . | . . . . . . . Combat . | . . . . . . . Robot Hacks Applied . | . . . . . . . Relay Couplers Released . | . . . . . . . Fabnet Peak Effective % . | . . . . . . . Robots Rewired . | . . . . . . . Allies Hacked . | . . . . . . . Hacks Repelled . | . . . . . . . Allies | -11 -10 -10 -9 -9 -8 -8 -------- Run | Yrd Mat Min Mat Min Mat Sto Total Allies 5 | . . 4 . 1 . . Largest Group 4 | . . 4 4 1 1 . Highest-Rated Group 71 | . . 71 71 31 31 . Highest-Rated Ally 31 | . . 31 31 31 31 . Total Orders . | . . . . . . . Ally Attacks 58 | . . . 34 9 15 . Total Damage 780 | . . . 364 144 272 . Kills 13 | . . . 7 4 2 . Allies Corrupted . | . . . . . . . Allies Melted . | . . . . . . . Intel | -11 -10 -10 -9 -9 -8 -8 ------- Run | Yrd Mat Min Mat Min Mat Sto Active Infowar (turns) 88 | . . . . . . 88 Optics 88 | . . . . . . 88 Robot Analysis Total . | . . . . . . . Derelict Logs Recovered 2 | . . 1 . 1 . . Drone Launches . | . . . . . . . Drone Recoveries . | . . . . . . . Exploration | -11 -10 -10 -9 -9 -8 -8 ------------- Run | Yrd Mat Min Mat Min Mat Sto Turns Passed 1589 | 35 152 78 357 414 456 97 Spaces Moved 1038 | 38 113 105 220 294 180 88 Core 846 | 38 56 . 190 294 180 88 Treads . | . . . . . . . Legs . | . . . . . . . Wheels . | . . . . . . . Hover 192 | . 57 105 30 . . . Flight . | . . . . . . . Fastest Speed 50 | 50 56 56 50 100 50 50 Average Speed 99 | 73 95 56 106 100 139 63 Slowest Speed 250 | 100 150 56 150 100 250 150 Overloaded Moves . | . . . . . . . Propulsion Burnouts . | . . . . . . . Robots Hopped . | . . . . . . . Potential Cave-ins . | . . . . . . . Cave-ins Triggered . | . . . . . . . Exploration Rate (%) 29 | 3 39 22 31 65 24 22 Regions Visited 6 Branch Regions 3 Pre-discovered Areas 1 | . . . . 1 . . Known Exits Taken . | . . . . . . . Unknown Exits Taken 6 | 1 1 1 1 1 1 . Scrap Searched 2 | . . 1 . 1 . . Spaces Dug 21 | . 20 . . . . 1 Terrain Destroyed 146 | . 76 . 56 11 1 2 Melee . | . . . . . . . Projectile 3 | . . . . . 1 2 AOE 143 | . 76 . 56 11 . . Terrain Rammed . | . . . . . . . Walls Destroyed . | . . . . . . . Machines Disabled . | . . . . . . . Actions | -11 -10 -10 -9 -9 -8 -8 --------- Run | Yrd Mat Min Mat Min Mat Sto Total 1421 | 45 137 117 311 376 314 121 Wait 202 | . . 9 49 60 58 26 Move 1032 | 37 112 104 219 293 179 88 Hop . | . . . . . . . Pick Up 25 | 3 3 1 9 1 7 1 Fast Attach . | . . . . . . . Attach 23 | 3 3 . 5 2 7 3 Detach . | . . . . . . . Swap 8 | . . 1 6 1 . . Drop 6 | 2 . . 2 . 2 . Fire 112 | . 19 2 21 19 48 3 Melee . | . . . . . . . Ram 13 | . . . . . 13 . Kick . | . . . . . . . Crush . | . . . . . . . Escape Stasis . | . . . . . . . Rewire . | . . . . . . . Trap . | . . . . . . . Miscellaneous . | . . . . . . . Route ------- -11/Scrapyard -10/Materials (discovered 2 exits: [*Mat] / [*Min]) -10/Mines -9/Materials -9/Mines -8/Materials -8/Storage History --------- Turn | Location | Event 5 | -11/Scrapyard | Discovered new exit (range 14) 36 | -11/Scrapyard | Entered Materials 121 | -10/Materials | Discovered new exit (range 12) 185 | -10/Materials | Discovered new exit (range 6) 188 | -10/Materials | Entered Mines 190 | -10/Mines | Assisted by bots powering up and referring to "LRC-V3" 199 | -10/Mines | Met a Derelict bent on vengeance 213 | -10/Mines | Learned Materials security intel 232 | -10/Mines | Discovered new exit (range 8) 237 | -10/Mines | Received a Mining Laser from a helpful Derelict 266 | -10/Mines | Entered Materials 266 | -9/Materials | Accompanied by 4 allies 266 | -9/Materials | Evolved 2 slots: Propulsion x2 313 | -9/Materials | Build established: Mutant 330 | -9/Materials | Lost 3 parts (1p2n) 558 | -9/Materials | Discovered new exit (range 8) 623 | -9/Materials | Entered Mines 623 | -9/Mines | Accompanied by 1 ally 624 | -9/Mines | Learned location of Storage (-8) 698 | -9/Mines | Learned Materials trap positions 715 | -9/Mines | Excavation squad dispatched 715 | -9/Mines | A large section of the Mines collapsed 918 | -9/Mines | Met a Derelict testing a Signal Generator 930 | -9/Mines | Found Signal Generator 956 | -9/Mines | Core integrity fell below 50% 965 | -9/Mines | Excavation squad dispatched 1020 | -9/Mines | Discovered new exit (range 14) 1037 | -9/Mines | Entered Materials 1037 | -8/Materials | Accompanied by 1 ally 1037 | -8/Materials | Evolved 2 slots: Utility x1, Weapon x1 1038 | -8/Materials | Loaded intel: 16 trap records 1363 | -8/Materials | Lost 4 parts (1u3w) 1478 | -8/Materials | Discovered new exit (range 15) 1483 | -8/Materials | Core integrity fell below 50% 1493 | -8/Materials | Entered Storage 1515 | -8/Storage | Lost 5 parts (1p3u1w) 1552 | -8/Storage | Core integrity fell below 20% 1590 | -8/Storage | Destroyed by Y-45 Defender with Heavy Assault Rifle Last Messages --------------- System corrupted: Heat flow error (+126). K-01 Serf collects debris. Triggered EMP Trap. A bubble of electromagnetic force engulfs the area. K-01 Serf collects debris. O-16 Technician sends out distress signal. O-16 Technician: "IFF HANDSHAKE FAILED. SECURING TERMINAL." K-01 Serf collects debris. ALERT: Hostiles spotted, dispatching reinforcements to Terminal S003. Connecting with Door Terminal... Current location identified: Storage >>Open(Door) Sealed Heavy Doors opened. Acquired Drone Bay. S-10 Pest destroyed. R-06 Scavenger collects Lgt. Ion Engine. Mining Laser destroyed. Map ----- +----------------------------------------------------+ | ?????????????????????????????????????????? | | ?????????????????????????????????????????? | | ?????????????????????????????????????????? | | ?????????????????????????????????????????? | | ?????????????????????????????????????????? | | ?????????????????????????????????????????? | | ?????????????????????????????????????????? | | ?????????????????"""?????????????????????? | | ????????????????"" ?????????????????????? | | ????????????????? ??????#??????????????? | | ????????????????##+###### ???????????????? | | ????????????????# ????????????????? | | ????????????????# #?????????????????? | | ????????????????+ #?????????????????? | | ????????????????# r #?????????????????? | | ????????????????+ ##/##????????????????? | | ????????????????#g ## ######???????????? | | ????????????????# ## # !!!#???????????? | | ????????????????# ## #???????????? | | ????????????????# ###T#!!!!#???????????? | | ???????#????????# #"###"####???????????? | | ???????# ??????# # T #???????????? | | ???????# """????+ # #???????????? | | ???????# """ ??# Y# #???????????? | | ???????# """ # Y# ##??????????? | | ???????# /@ ss "#??????????? | | ???????#" = #o # """"" T#??????????? | | ???????#T ??# # """"" "#??????????? | | ???????#" %????# # """"" ##??????????? | | ???????# ??????# # #???????????? | | ???????#????????# ## #"Y"###???????????? | | ????????????????# ####"""#?????????????? | | ????????????????# #???####?????????????? | | ????????????????# #????????????????????? | | ????????????????# #????????????????????? | | ????????????????# #????????????????????? | | ????????????????# #????????????????????? | | ????????????????# #????????????????????? | | ????????????????# #????????????????????? | | ????????????????# #????????????????????? | | ?????????#??????# #??########??????????? | | ???????### ####?# #? #??????????? | | ???????# ?# a#? #??????????? | | ???????# """ # # """" #??????????? | | ???????# """ # # """" #??????????? | | ???????# """ " + """" #??????????? | | ???????# # # """" #??????????? | | ???????# """ # # #??????????? | | ???????# ! """?# #? +??????????? | | ???????# """?# #?### #####??????????? | +----------------------------------------------------+ Best States ------------- Heat Dissipation 31 Energy Generation 12 Energy Capacity 265 Matter Stores 300 Matter Capacity 300 Sight Range 20 Terrain Scan Density 10 Base Temperature (-) 100 Evasion (%) 53 Targeting Accuracy 18 Particle Charging 15 Item Schematics ----------------- None Robot Schematics ------------------ None Fabricated ------------ Nothing Repaired ---------- Nothing Alien Tech Used ----------------- None Achievements -------------- None Challenges ------------ None Game ------ Seed StructuralMyomerShovel Manual? 0 Play Time 00:15:52 Cumulative 94.0 hours Start 2025.08.17 @ 14:33:06 End 2025.08.17 @ 14:47:53 Sessions 1 Manual Loads 0 Difficulty Rogue Special Mode None Game No. 365 Rogue 365 Adventurer 0 Explorer 0 Win Type - Total 0 Types 0/0/0/0/0/0/0/0/0/0 Lore% 43 Gallery% 40 Achievement% 30 Wizard Run 0 Options --------- Layout 2 ASCII 0 Keyboard 0 Movement Mouse Keybinds 0 Fullscreen 2 Font 24/Smallcaps Map View 50x44 Zoom Use 0% Tactical HUD 0 Map Filters NONE Filters NONE Steam 1 RUN: dbad92ca-8a11-4fde-8bdb-b3e25124044f